bitfinex/quotes_BTCUSD_20250114
["timestamp","ask_amount","ask_price","bid_price","bid_amount"]
[1736861854866,0.01336,96798.0,96779.0,0.09471431]
[1736861855097,0.01336,96798.0,96761.0,0.10422692]
[1736861855307,0.11758692,96798.0,96770.0,0.09471431]
[1736861855504,0.11758692,96798.0,96771.0,0.01042269]
[1736861855867,0.12722692,96797.0,96771.0,0.01042269]
[1736861856276,0.12722692,96797.0,96762.0,0.09471431]
[1736861856515,0.023,96795.0,96762.0,0.09471431]
[1736861856671,0.173,96793.0,96762.0,0.09471431]
[1736861856870,0.25422692,96793.0,96765.0,0.09471431]
[1736861857116,0.15,96793.0,96772.0,0.09471431]
[1736861857379,0.15,96793.0,96773.0,0.01989412]
[1736861857737,0.01336,96792.0,96773.0,0.12412104]
[1736861857937,0.01336,96792.0,96775.0,0.09471431]
[1736861858112,0.15,96824.0,96779.0,0.09471431]
[1736861858316,0.1458,96830.0,96779.0,0.09574745]
[1736861858317,0.11758692,96823.0,96779.0,0.09574745]
[1736861858559,0.11758692,96823.0,96770.0,0.28338785]
[1736861858560,0.10422692,96823.0,96791.0,0.09471431]
[1736861858875,0.01336,96822.0,96796.0,0.09471431]
[1736861859085,0.01336,96822.0,96798.0,0.09471431]
[1736861859291,0.0779,96845.0,96798.0,0.19894123]
[1736861859500,0.00985663,96843.0,96820.0,0.28338785]
[1736861859774,0.00229836,96839.0,96828.0,0.09471431]
[1736861860206,0.00229836,96839.0,96827.0,0.09471431]
[1736861860406,0.00229836,96839.0,96832.0,0.09471431]
[1736861860951,0.00229836,96839.0,96818.0,0.09471431]
[1736861861175,0.00229836,96839.0,96819.0,0.00947143]
[1736861861606,0.00229836,96839.0,96820.0,0.00103272]
[1736861861810,0.00229836,96839.0,96799.0,0.25]
[1736861861811,0.00229836,96839.0,96812.0,0.09471431]
[1736861862014,0.173,96837.0,96803.0,0.09471431]
[1736861862214,0.10422692,96836.0,96808.0,0.09471431]
[1736861862689,0.023,96835.0,96804.0,0.11460843]
[1736861862929,0.15,96837.0,96810.0,0.09471431]
[1736861863129,0.00229836,96839.0,96810.0,0.09471431]
[1736861863331,0.15,96838.0,96811.0,0.09471431]
[1736861864153,0.00229836,96839.0,96816.0,0.09471431]
[1736861864386,0.00229836,96839.0,96818.0,0.09471431]
[1736861864512,0.00229836,96839.0,96810.0,0.28338785]
[1736861864513,0.00229836,96839.0,96826.0,0.09471431]
[1736861864719,0.00229836,96839.0,96819.0,0.12422431]
[1736861864920,0.00229836,96839.0,96819.0,0.01999739]
[1736861865147,0.00229836,96839.0,96813.0,0.09471431]
[1736861865320,0.01284,96838.0,96813.0,0.09471431]
[1736861865844,0.12722692,96837.0,96796.0,0.15103277]
[1736861866047,0.023,96835.0,96797.0,0.09471431]
[1736861866387,0.10422692,96834.0,96798.0,0.10422692]
[1736861866608,0.10422692,96834.0,96806.0,0.09471431]
[1736861866609,0.01284,96833.0,96806.0,0.09471431]
[1736861866793,0.16284,96833.0,96804.0,0.09471431]
[1736861867009,0.16284,96833.0,96806.0,0.09471431]
[1736861867946,0.16284,96833.0,96799.0,0.01989412]
[1736861867947,0.01284,96837.0,96800.0,0.09471431]
[1736861868148,0.173,96831.0,96786.0,0.09471431]
[1736861868353,0.173,96831.0,96770.0,0.33078785]
[1736861868354,0.173,96829.0,96787.0,0.12189835]
[1736861868576,0.173,96827.0,96787.0,0.12189835]
[1736861868781,0.173,96825.0,96787.0,0.01767143]
[1736861868980,0.15,96823.0,96787.0,0.01767143]
[1736861869225,0.15,96821.0,96787.0,0.01767143]
[1736861869430,0.023,96818.0,96788.0,0.01123857]
[1736861869606,0.023,96816.0,96780.0,0.09471431]
[1736861869799,0.023,96814.0,96784.0,0.09471431]
[1736861870028,0.15,96819.0,96790.0,0.09471431]
[1736861870209,0.01284,96818.0,96798.0,0.09471431]
[1736861870402,0.01284,96818.0,96799.0,0.10521867]
[1736861870604,0.01284,96823.0,96799.0,0.10521867]
[1736861870805,0.27722692,96822.0,96772.0,0.09471431]
[1736861871037,0.28251261,96819.0,96771.0,0.09471431]
[1736861871377,0.15,96815.0,96771.0,0.10422692]
[1736861871590,0.173,96809.0,96769.0,0.01034414]
[1736861871773,0.15,96807.0,96772.0,0.00103325]
[1736861871916,0.173,96805.0,96770.0,0.00934441]
[1736861872124,0.10422692,96806.0,96770.0,0.00934441]
[1736861872125,0.15,96803.0,96779.0,0.01034414]
[1736861872481,0.01284,96804.0,96784.0,0.01034414]
[1736861872688,0.01284,96804.0,96785.0,0.00103305]
[1736861872913,0.01284,96804.0,96790.0,0.01034414]
[1736861872914,0.00014976,96804.0,96790.0,0.01034414]
[1736861873115,0.00014976,96804.0,96782.0,0.01034414]
[1736861873241,0.00014976,96804.0,96783.0,0.10422692]
[1736861873629,0.00014976,96804.0,96777.0,0.01034414]
[1736861873764,0.00014976,96804.0,96778.0,0.10422692]
[1736861873962,0.00014976,96804.0,96780.0,0.01034414]
[1736861874185,0.00014976,96804.0,96778.0,0.10422692]
[1736861874393,0.173,96802.0,96764.0,0.01034414]
[1736861874577,0.173,96800.0,96787.0,0.0008527]
[1736861874771,0.173,96798.0,96787.0,0.0008527]
[1736861874998,0.173,96796.0,96787.0,0.0008527]
[1736861875197,0.173,96794.0,96787.0,0.0008527]
[1736861875398,0.173,96792.0,96787.0,0.0008527]
[1736861875604,0.10422692,96791.0,96787.0,0.0008527]
[1736861875963,0.023,96790.0,96787.0,0.0008527]
[1736861876136,0.206582,96814.0,96811.0,0.60365755]
[1736861876310,0.206585,96812.0,96811.0,0.60365755]
[1736861876953,0.32313192,96812.0,96811.0,0.60365755]
[1736861877156,0.32313192,96812.0,96811.0,0.2196037]
[1736861877157,0.3438518,96812.0,96811.0,0.2196037]
[1736861877322,0.3438518,96812.0,96811.0,0.13897405]
[1736861878204,0.5330551,96812.0,96811.0,0.09979433]
[1736861878375,0.6289985,96812.0,96811.0,0.09979433]
[1736861878609,0.5100551,96812.0,96811.0,0.09979433]
[1736861878811,0.45638785,96797.0,96787.0,0.0008527]
[1736861879130,0.206686,96765.0,96747.0,0.0008534]
[1736861879335,0.28338785,96760.0,96747.0,0.0008534]
[1736861879456,0.023,96758.0,96747.0,0.0008534]
[1736861879663,0.15,96756.0,96747.0,0.0008534]
[1736861879888,0.023,96753.0,96747.0,0.0008534]
[1736861880088,0.173,96751.0,96747.0,0.0008534]
[1736861880298,0.379722,96748.0,96747.0,0.0008534]
[1736861880517,0.15,96724.0,96690.0,0.0763]
[1736861880688,0.206772,96725.0,96710.0,0.00014976]
[1736861880689,0.28338785,96712.0,96710.0,0.00014976]
[1736861881338,0.10422692,96711.0,96710.0,0.00014976]
[1736861881515,0.13456133,96711.0,96710.0,0.00014976]
[1736861881729,0.17635625,96711.0,96710.0,0.00014976]
[1736861881931,0.13456133,96711.0,96710.0,0.00014976]
[1736861882377,0.10422692,96711.0,96710.0,0.00014976]
[1736861882576,0.01232,96723.0,96710.0,0.00014976]
[1736861882772,0.10422692,96722.0,96710.0,0.00014976]
[1736861883352,0.01232,96721.0,96710.0,0.00014976]
[1736861883765,0.15,96719.0,96710.0,0.00014976]
[1736861884032,0.25422692,96711.0,96710.0,0.00014976]
[1736861884163,0.023,96709.0,96693.0,0.0008532]
[1736861884354,0.25422692,96703.0,96702.0,0.00100544]
[1736861884559,0.26654692,96703.0,96702.0,0.00100544]
[1736861884853,0.28954692,96703.0,96702.0,0.00100544]
[1736861885175,0.793461,96702.0,96693.0,0.0008532]
[1736861885383,0.27722692,96694.0,96693.0,0.00135003]
[1736861885600,0.27722692,96694.0,96652.0,0.06465001]
[1736861885601,0.13194961,96694.0,96652.0,0.06465001]
[1736861885764,0.15,96689.0,96652.0,0.06465001]
[1736861885963,0.15,96687.0,96656.0,0.1]
[1736861886169,0.15,96685.0,96656.0,0.1]
[1736861886393,0.15,96679.0,96652.0,0.06465001]
[1736861886595,0.15,96677.0,96652.0,0.06465001]
[1736861886820,0.023,96682.0,96652.0,0.06465001]
[1736861886821,0.15,96675.0,96652.0,0.06465001]
[1736861887028,0.03722105,96694.0,96654.0,0.1]
[1736861887029,0.15,96689.0,96654.0,0.1]
[1736861887230,0.15,96687.0,96654.0,0.1]
[1736861887430,0.11602692,96688.0,96654.0,0.1]
[1736861887431,0.15,96685.0,96655.0,0.02127601]
[1736861887637,0.15,96683.0,96652.0,0.06465001]
[1736861887935,0.15,96681.0,96652.0,0.06465001]
[1736861888151,0.02822105,96694.0,96660.0,0.1]
[1736861888406,0.0118,96680.0,96659.0,0.1]
[1736861888633,0.10422692,96679.0,96656.0,0.101]
[1736861888864,0.11602692,96680.0,96652.0,0.16465001]
[1736861889107,0.009,96681.0,96661.0,0.1]
[1736861889318,0.009,96681.0,96673.0,0.1]
[1736861889526,0.206768,96727.0,96669.0,0.1]
[1736861889527,0.01229836,96694.0,96669.0,0.1]
[1736861889732,0.008,96680.0,96670.0,0.10422692]
[1736861889945,0.008,96680.0,96660.0,0.1]
[1736861890151,0.008,96680.0,96659.0,0.001]
[1736861890556,0.28338785,96690.0,96658.0,0.1]
[1736861890692,0.1452278,96689.0,96660.0,0.1]
[1736861890900,0.1452278,96689.0,96658.0,0.1]
[1736861890901,0.11602692,96689.0,96658.0,0.1]
[1736861891101,0.15,96688.0,96654.0,0.2]
[1736861891305,0.15,96686.0,96657.0,0.1]
[1736861891506,0.15,96684.0,96655.0,0.1]
[1736861891775,0.15,96682.0,96655.0,0.1]
[1736861891942,0.004,96681.0,96658.0,0.1]
[1736861892164,0.004,96681.0,96655.0,0.1]
[1736861892165,0.004,96681.0,96660.0,0.1]
[1736861892346,0.00049836,96694.0,96672.0,0.2]
[1736861892542,0.00049836,96694.0,96675.0,0.1]
[1736861892543,0.0118,96693.0,96675.0,0.1]
[1736861892748,0.009,96684.0,96677.0,0.1]
[1736861892967,0.00049836,96694.0,96657.0,0.206916]
[1736861892968,0.00049836,96694.0,96690.0,0.1]
[1736861893174,0.00049836,96694.0,96691.0,0.0809]
[1736861893360,0.00049836,96694.0,96693.0,0.1]
[1736861893796,0.00049836,96694.0,96691.0,0.0809]
[1736861894002,0.00049836,96694.0,96683.0,0.0453]
[1736861894208,0.02888698,96694.0,96683.0,0.0453]
[1736861894426,0.10422692,96693.0,96672.0,0.0809]
[1736861895542,0.00049836,96694.0,96672.0,0.0809]
[1736861895747,0.10472528,96694.0,96672.0,0.0809]
[1736861895963,0.28338785,96690.0,96662.0,0.0453]
[1736861896139,0.10422692,96689.0,96663.0,0.1]
[1736861896341,0.10422692,96689.0,96672.0,0.001]
[1736861896988,0.10422692,96689.0,96672.0,0.002]
[1736861897198,0.15,96688.0,96662.0,0.0453]
[1736861897417,0.15,96686.0,96662.0,0.0453]
[1736861897660,0.15,96684.0,96672.0,0.0008534]
[1736861897860,0.25422692,96684.0,96672.0,0.0008534]
[1736861898062,0.15,96684.0,96672.0,0.0008534]
[1736861898474,0.25422692,96684.0,96672.0,0.0008534]
[1736861898679,0.023,96681.0,96672.0,0.0008534]
[1736861898885,0.173,96679.0,96672.0,0.0008534]
[1736861899085,0.15,96677.0,96672.0,0.0008534]
[1736861899239,0.15,96675.0,96672.0,0.0008534]
[1736861899477,0.15,96673.0,96672.0,0.0008534]
[1736861900219,0.27722692,96673.0,96672.0,0.0008534]
[1736861900433,0.32563661,96673.0,96672.0,0.0008534]
[1736861900628,0.27722692,96673.0,96672.0,0.0008534]
[1736861900800,0.10422692,96673.0,96672.0,0.0008534]
[1736861901214,0.01094107,96681.0,96672.0,0.0008534]
[1736861901428,0.11516799,96681.0,96672.0,0.0008534]
[1736861901674,0.15,96680.0,96672.0,0.0008534]
[1736861901878,0.15,96678.0,96672.0,0.0008534]
[1736861902090,0.11602692,96679.0,96672.0,0.0008534]
[1736861902091,0.0118,96679.0,96672.0,0.0038534]
[1736861902219,0.3,96740.0,96672.0,0.0038534]
[1736861902220,0.02114692,96687.0,96672.0,0.0008534]
[1736861902428,0.0118,96686.0,96673.0,0.1236]
[1736861902811,0.09944,96724.0,96680.0,0.1]
[1736861902812,0.009,96681.0,96680.0,0.1]
[1736861903011,0.00987631,96701.0,96685.0,0.1]
[1736861903012,0.01132,96690.0,96685.0,0.1]
[1736861903636,0.01132,96690.0,96686.0,0.20422692]
[1736861903856,0.01019594,96704.0,96675.0,0.1]
[1736861904057,0.01132,96693.0,96683.0,0.1]
[1736861904385,0.01132,96693.0,96682.0,0.1]
[1736861904801,0.01132,96693.0,96673.0,0.1236]
[1736861905205,0.00932,96693.0,96677.0,0.1]
[1736861905409,0.007,96686.0,96677.0,0.20422692]
[1736861905610,0.00932,96693.0,96683.0,0.1]
[1736861905832,0.00932,96693.0,96673.0,0.1236]
[1736861906031,0.01232,96693.0,96673.0,0.1236]
[1736861906244,0.00932,96693.0,96673.0,0.1236]
[1736861906449,0.00932,96693.0,96676.0,0.1]
[1736861906651,0.005,96686.0,96676.0,0.1]
[1736861907067,0.005,96686.0,96673.0,0.1236]
[1736861907681,0.005,96686.0,96676.0,0.1]
[1736861907908,0.005,96686.0,96673.0,0.12463434]
[1736861907909,0.01132,96685.0,96679.0,0.1]
[1736861908169,0.01132,96685.0,96673.0,0.1236]
[1736861909140,0.00229135,96694.0,96676.0,0.1]
[1736861909341,0.01132,96693.0,96685.0,0.1]
[1736861909541,0.01132,96693.0,96679.0,0.1]
[1736861909743,0.01132,96693.0,96681.0,0.1]
[1736861909942,0.01132,96692.0,96677.0,0.1]
[1736861910146,0.01132,96692.0,96676.0,0.1]
[1736861910308,0.01132,96692.0,96673.0,0.1236]
[1736861910510,0.11554692,96692.0,96673.0,0.1236]
[1736861910720,0.11601075,96691.0,96673.0,0.1236]
[1736861911124,0.01132,96692.0,96673.0,0.1236]
[1736861911889,0.007,96691.0,96673.0,0.1246]
[1736861912110,0.10422692,96690.0,96673.0,0.1236]
[1736861912325,0.15,96689.0,96673.0,0.0467]
[1736861912476,0.15,96687.0,96673.0,0.0477]
[1736861912820,0.15,96685.0,96673.0,0.0467]
[1736861912993,0.15,96685.0,96673.0,0.0477]
[1736861913195,0.007,96691.0,96673.0,0.0477]
[1736861913397,0.007,96691.0,96674.0,0.1]
[1736861913600,0.01132,96690.0,96675.0,0.10103431]
[1736861913799,0.01132,96690.0,96676.0,0.1]
[1736861914011,0.01132,96690.0,96680.0,0.1]
[1736861914211,0.007,96691.0,96686.0,0.1]
[1736861914424,0.00229135,96694.0,96686.0,0.1]
[1736861914425,0.01132,96690.0,96686.0,0.1]
[1736861914617,0.00229135,96694.0,96693.0,0.1]
[1736861914796,0.00229135,96694.0,96693.0,0.28162692]
[1736861915160,0.00229135,96694.0,96677.0,0.0774]
[1736861915317,0.003,96690.0,96677.0,0.0774]
[1736861915503,0.003,96690.0,96684.0,0.1]
[1736861915704,0.00229135,96694.0,96693.0,0.1]
[1736861916182,0.00229135,96694.0,96693.0,0.20422692]
[1736861916922,0.00229135,96694.0,96680.0,0.1]
[1736861917121,0.00229135,96694.0,96679.0,0.1]
[1736861917654,0.00229135,96694.0,96677.0,0.0774]
[1736861917826,0.00229135,96694.0,96684.0,0.002]
[1736861918037,0.00229135,96694.0,96677.0,0.0774]
[1736861919043,0.00629135,96694.0,96677.0,0.0774]
[1736861919249,0.10651827,96694.0,96677.0,0.0774]
[1736861919461,0.14434953,96693.0,96673.0,0.0467]
[1736861919901,0.04012261,96693.0,96673.0,0.0467]
[1736861920105,0.00229135,96694.0,96673.0,0.1467]
[1736861920311,0.0108,96692.0,96673.0,0.1467]
[1736861920529,0.00229135,96694.0,96675.0,0.2]
[1736861920749,0.10422692,96676.0,96629.0,0.1]
[1736861920957,0.10422692,96676.0,96639.0,0.1]
[1736861920958,0.10422692,96673.0,96639.0,0.1]
[1736861921167,0.10422692,96673.0,96653.0,0.1]
[1736861921374,0.0108,96672.0,96655.0,0.1]
[1736861921588,0.0108,96672.0,96651.0,0.1008563]
[1736861921589,0.0108,96672.0,96656.0,0.1]
[1736861921974,0.0108,96672.0,96651.0,0.0008563]
[1736861922235,0.15,96669.0,96651.0,0.0008563]
[1736861922434,0.15,96667.0,96651.0,0.0008563]
[1736861922711,0.04347844,96664.0,96653.0,0.001]
[1736861922910,0.173,96662.0,96653.0,0.001]
[1736861923073,0.173,96660.0,96653.0,0.001]
[1736861923270,0.15,96656.0,96653.0,0.001]
[1736861923475,0.15,96654.0,96653.0,0.001]
[1736861923753,0.25422692,96654.0,96653.0,0.001]
[1736861923927,0.26502692,96654.0,96651.0,0.0008563]
[1736861924165,0.0918017,96681.0,96653.0,9.372e-05]
[1736861924166,0.002,96672.0,96653.0,9.372e-05]
[1736861924368,0.0918017,96681.0,96653.0,0.10009372]
[1736861924601,0.0108,96671.0,96653.0,0.10009372]
[1736861925008,0.006,96654.0,96653.0,0.10009372]
[1736861925446,0.006,96654.0,96653.0,0.30535519]
[1736861925669,0.0108,96668.0,96667.0,0.1]
[1736861925897,0.0108,96668.0,96662.0,0.2]
[1736861926303,0.0108,96668.0,96662.0,0.1]
[1736861926526,0.0108,96668.0,96663.0,0.1]
[1736861926727,0.0918017,96679.0,96659.0,0.1]
[1736861926940,0.13774032,96681.0,96653.0,0.33082064]
[1736861926941,0.28338785,96670.0,96653.0,0.12659372]
[1736861927189,0.2418017,96677.0,96653.0,0.12659372]
[1736861927389,0.15,96669.0,96653.0,0.04749372]
[1736861927592,0.15,96667.0,96653.0,0.04749372]
[1736861927808,0.15,96667.0,96653.0,9.372e-05]
[1736861928011,0.10522692,96668.0,96653.0,9.372e-05]
[1736861928012,0.023,96664.0,96653.0,9.372e-05]
[1736861928224,0.10422692,96663.0,96653.0,9.372e-05]
[1736861928433,0.05386148,96666.0,96653.0,9.372e-05]
[1736861928650,0.10422692,96666.0,96653.0,9.372e-05]
[1736861928883,0.39053361,96677.0,96653.0,9.372e-05]
[1736861928884,0.0918017,96659.0,96653.0,9.372e-05]
[1736861929140,0.0108,96658.0,96653.0,0.10009372]
[1736861929359,0.0108,96658.0,96656.0,0.1]
[1736861929588,0.0108,96658.0,96656.0,0.2]
[1736861930015,0.0918017,96657.0,96656.0,0.2]
[1736861930238,0.0918017,96657.0,96653.0,9.372e-05]
[1736861930441,0.0918017,96657.0,96656.0,0.1]
[1736861930648,0.0108,96658.0,96656.0,0.1]
[1736861931061,0.0918017,96663.0,96653.0,9.372e-05]
[1736861931266,0.0108,96657.0,96653.0,9.372e-05]
[1736861931469,0.0108,96656.0,96653.0,9.372e-05]
[1736861931885,0.001,96658.0,96653.0,9.372e-05]
[1736861932088,0.0108,96655.0,96653.0,9.372e-05]
[1736861932298,0.25422692,96654.0,96653.0,9.372e-05]
[1736861932505,0.30368381,96654.0,96653.0,9.372e-05]
[1736861932710,0.15,96653.0,96651.0,0.0008563]
[1736861932855,0.25422692,96652.0,96651.0,0.0008563]
[1736861934531,0.27722692,96652.0,96651.0,0.0008563]
[1736861934760,0.28522692,96652.0,96651.0,0.0008563]
[1736861934970,0.39225384,96652.0,96651.0,0.0008563]
[1736861935374,0.40125384,96652.0,96651.0,0.0008563]
[1736861936192,0.43172813,96652.0,96651.0,0.0008563]
[1736861936397,0.36745384,96652.0,96651.0,0.0008563]
[1736861936598,0.1698,96652.0,96651.0,0.0008563]
[1736861936828,0.27402692,96652.0,96651.0,0.0008563]
[1736861937753,0.01032,96652.0,96651.0,0.0008563]
[1736861937981,0.01932,96652.0,96651.0,0.0008563]
[1736861938317,0.01032,96652.0,96651.0,0.0008563]
[1736861938724,0.01932,96652.0,96651.0,0.0008563]
[1736861939323,0.01032,96652.0,96651.0,0.0008563]
[1736861939752,0.0151955,96652.0,96651.0,0.0008563]
[1736861940341,0.11942242,96652.0,96651.0,0.0008563]
[1736861940656,0.005,96652.0,96651.0,0.0008563]
[1736861941036,0.005,96652.0,96651.0,0.33211788]
[1736861941238,0.206846,96690.0,96660.0,0.1]
[1736861941466,0.008,96652.0,96651.0,0.1268563]
[1736861941843,0.008,96652.0,96651.0,0.33108322]
[1736861942039,0.013,96652.0,96651.0,0.1268563]
[1736861942244,0.02332,96652.0,96651.0,0.2268563]
[1736861942557,0.01032,96652.0,96651.0,0.2268563]
[1736861942758,0.01132,96652.0,96651.0,0.1268563]
[1736861942939,0.01032,96652.0,96651.0,0.1268563]
[1736861943146,0.01032,96652.0,96651.0,0.2268563]
[1736861943519,0.16228439,96681.0,96651.0,0.2268563]
[1736861943520,0.15,96681.0,96659.0,0.1]
[1736861943698,0.01032,96671.0,96661.0,0.1]
[1736861944164,0.15,96682.0,96669.0,0.1]
[1736861944376,0.15,96682.0,96670.0,0.1]
[1736861944377,0.01032,96671.0,96670.0,0.1]
[1736861944583,0.15,96682.0,96670.0,0.1]
[1736861944786,0.01032,96671.0,96670.0,0.1]
[1736861944957,0.01032,96671.0,96653.0,0.1]
[1736861944958,0.01032,96671.0,96655.0,0.1]
[1736861945199,0.01632,96671.0,96660.0,0.1]
[1736861945370,0.01032,96671.0,96660.0,0.1]
[1736861945607,0.01032,96671.0,96653.0,0.1]
[1736861945809,0.01032,96671.0,96658.0,0.1]
[1736861946191,0.01032,96671.0,96655.0,0.1]
[1736861946425,0.01632,96671.0,96652.0,0.1]
[1736861946540,0.01632,96671.0,96651.0,0.1268563]
[1736861946741,0.12799025,96670.0,96651.0,0.1268563]
[1736861947177,0.02376333,96670.0,96651.0,0.1268563]
[1736861947465,0.01632,96671.0,96651.0,0.2268563]
[1736861947891,0.01032,96671.0,96651.0,0.2268563]
[1736861948101,0.01032,96671.0,96658.0,0.1]
[1736861948306,0.01432,96671.0,96658.0,0.1]
[1736861948516,0.01032,96671.0,96658.0,0.1]
[1736861948739,0.00179341,96672.0,96658.0,0.1]
[1736861948951,0.01032,96670.0,96660.0,0.1]
[1736861950575,0.01032,96669.0,96660.0,0.1]
[1736861951320,0.01032,96669.0,96653.0,0.1]
[1736861951541,0.15,96667.0,96651.0,0.1268563]
[1736861951747,0.00179341,96672.0,96651.0,0.1268563]
[1736861951748,0.15,96665.0,96651.0,0.1268563]
[1736861951948,0.15,96663.0,96651.0,0.0008563]
[1736861952155,0.173,96660.0,96651.0,0.0008563]
[1736861952309,0.15,96658.0,96651.0,0.0008563]
[1736861952521,0.03695403,96666.0,96651.0,0.0008563]
[1736861952747,0.11454692,96666.0,96651.0,0.0008563]
[1736861952906,0.01032,96666.0,96651.0,0.0008563]
[1736861953107,0.31112692,96665.0,96651.0,0.0008563]
[1736861953522,0.15,96662.0,96651.0,0.0008563]
[1736861953730,0.15,96653.0,96651.0,0.0008563]
[1736861953943,0.206924,96654.0,96651.0,0.0008563]
[1736861953944,0.51984632,96652.0,96651.0,0.0008563]
[1736861955108,0.54033793,96652.0,96651.0,0.0008563]
[1736861955309,0.54733793,96652.0,96651.0,0.0008563]
[1736861955539,0.157,96652.0,96651.0,0.0008563]
[1736861955751,0.26454692,96652.0,96651.0,0.0008563]
[1736861955965,0.16732,96652.0,96651.0,0.0008563]
[1736861956612,0.01732,96652.0,96651.0,0.0008563]
[1736861957171,0.01032,96652.0,96651.0,0.0008563]
[1736861957623,0.15927052,96652.0,96651.0,0.0008563]
[1736861957832,0.15127052,96652.0,96651.0,0.0008563]
[1736861958144,0.15927052,96652.0,96651.0,0.0008563]
[1736861958408,0.15127052,96652.0,96651.0,0.0008563]
[1736861958555,0.17427052,96652.0,96651.0,0.0008563]
[1736861958765,0.18227052,96652.0,96651.0,0.0008563]
[1736861958944,0.6673056,96652.0,96651.0,0.0008563]
[1736861959769,0.7002477,96652.0,96651.0,0.0008563]
[1736861959976,0.73072199,96652.0,96651.0,0.0008563]
[1736861960396,0.7082477,96652.0,96651.0,0.0008563]
[1736861960601,0.71572199,96652.0,96651.0,0.0008563]
[1736861960806,0.70724199,96652.0,96651.0,0.0008563]
[1736861961007,0.71524199,96652.0,96651.0,0.0008563]
[1736861961211,0.73824199,96652.0,96651.0,0.0008563]
[1736861961551,0.6518256,96652.0,96651.0,0.0008563]
[1736861962198,0.68085301,96652.0,96651.0,0.0008563]
[1736861962396,0.67101301,96652.0,96651.0,0.0008563]
[1736861962578,0.94355246,96652.0,96651.0,0.0008563]
[1736861963456,0.83748716,96652.0,96651.0,0.0008563]
[1736861963661,0.36087508,96652.0,96651.0,0.0008563]
[1736861963886,0.36087508,96652.0,96651.0,0.2255563]
[1736861964738,0.36087508,96652.0,96651.0,0.0008563]
[1736861964951,0.00984,96652.0,96651.0,0.0008563]
[1736861965363,0.0685574,96652.0,96651.0,0.0008563]
[1736861965560,0.0665574,96652.0,96651.0,0.0008563]
[1736861965791,0.17078432,96652.0,96651.0,0.0008563]
[1736861966003,0.32078432,96652.0,96651.0,0.0008563]
[1736861966132,0.27589608,96652.0,96651.0,0.0008563]
[1736861966349,0.30672635,96652.0,96651.0,0.0008563]
[1736861966571,0.27589608,96652.0,96651.0,0.0008563]
[1736861966785,0.30441828,96652.0,96651.0,0.0008563]
[1736861966980,0.4105943,96652.0,96651.0,0.0008563]
[1736861967196,0.3590721,96652.0,96651.0,0.0008563]
[1736861967379,0.34724294,96652.0,96651.0,0.0008563]
[1736861967630,0.38476514,96652.0,96651.0,0.0008563]
[1736861967795,0.35624294,96652.0,96651.0,0.0008563]
[1736861968564,0.35573676,96652.0,96651.0,0.0008563]
[1736861969013,0.36473676,96652.0,96651.0,0.0008563]
[1736861969218,0.35573676,96652.0,96651.0,0.0008563]
[1736861969863,0.37873676,96652.0,96651.0,0.0008563]
[1736861970089,0.72162903,96652.0,96651.0,0.0008563]
[1736861970696,0.72962903,96652.0,96651.0,0.0008563]
[1736861970971,0.72162903,96652.0,96651.0,0.0008563]
[1736861971142,0.95385155,96652.0,96651.0,0.0008563]
[1736861971388,0.96285155,96652.0,96651.0,0.0008563]
[1736861971555,0.95385155,96652.0,96651.0,0.0008563]
[1736861971974,0.72962903,96652.0,96651.0,0.0008563]
[1736861972395,0.72162903,96652.0,96651.0,0.0008563]
[1736861972634,0.73062903,96652.0,96651.0,0.0008563]
[1736861972807,0.73066972,96652.0,96651.0,0.0008563]
[1736861973220,0.38777745,96652.0,96651.0,0.0008563]
[1736861973918,0.37877745,96652.0,96651.0,0.0008563]
[1736861974279,0.34593745,96652.0,96651.0,0.0008563]
[1736861974482,0.16837451,96652.0,96651.0,0.0008563]
[1736861974686,0.28060143,96652.0,96651.0,0.0008563]
[1736861975085,0.27260143,96652.0,96651.0,0.0008563]
[1736861975508,0.28160143,96652.0,96651.0,0.0008563]
[1736861975714,0.01837451,96652.0,96651.0,0.0008563]
[1736861976151,0.04667387,96652.0,96651.0,0.0008563]
[1736861976653,0.30090079,96652.0,96651.0,0.0008563]
[1736861977180,0.33190079,96652.0,96651.0,0.0008563]
[1736861977318,0.32390079,96652.0,96651.0,0.0008563]
[1736861977730,0.33290079,96652.0,96651.0,0.0008563]
[1736861978002,0.32390079,96652.0,96651.0,0.0008563]
[1736861978206,0.66669595,96652.0,96651.0,0.0008563]
[1736861978392,0.67469595,96652.0,96651.0,0.0008563]
[1736861978602,0.66669595,96652.0,96651.0,0.0008563]
[1736861979103,0.67469595,96652.0,96651.0,0.0008563]
[1736861979426,0.70552622,96652.0,96651.0,0.0008563]
[1736861980190,0.7251628,96652.0,96651.0,0.0008563]
[1736861980600,0.7341628,96652.0,96651.0,0.0008563]
[1736861980804,1.00382982,96652.0,96651.0,0.0008563]
[1736861981008,1.00382982,96652.0,96631.0,0.0008571]
[1736861981009,0.15,96633.0,96631.0,0.0008571]
[1736861981214,0.34374556,96632.0,96631.0,0.00095116]
[1736861981419,0.37138214,96632.0,96631.0,0.00095116]
[1736861982219,0.57835214,96632.0,96631.0,0.00095116]
[1736861982956,0.73874834,96632.0,96631.0,0.00095116]
[1736861983615,0.74774834,96632.0,96631.0,0.00095116]
[1736861983758,0.61644317,96632.0,96631.0,0.00095116]
[1736861984852,0.61644317,96632.0,96623.0,0.0008554]
[1736861984853,0.173,96631.0,96623.0,0.0008554]
[1736861985066,0.023,96628.0,96623.0,0.0008554]
[1736861985414,0.173,96626.0,96623.0,0.0008554]
[1736861985568,0.15,96624.0,96623.0,0.0008554]
[1736861985776,0.28307277,96624.0,96623.0,0.0008554]
[1736861986397,0.08307277,96624.0,96623.0,0.0008554]
[1736861986813,0.37740629,96632.0,96623.0,0.0008554]
[1736861986814,0.12573959,96632.0,96623.0,0.0008554]
[1736861986973,0.10456581,96632.0,96630.0,0.1]
[1736861987176,0.10456581,96632.0,96631.0,0.0801]
[1736861987377,0.11392581,96632.0,96631.0,0.0801]
[1736861988085,0.10456581,96632.0,96631.0,0.0801]
[1736861988295,0.03017336,96632.0,96631.0,0.0801]